[Event "Groningen Festival 2019-B"]
[Site "Groningen"]
[Date "2019.12.21"]
[Round "1.1"]
[White "Akotchik, Victor"]
[Black "Konnen, Timo"]
[Result "1-0"]
[ECO "B01"]
[WhiteElo "2095"]
[BlackElo "1843"]
[Annotator "NA RC"]
[PlyCount "41"]
[EventDate "2019.12.15"]
[EventType "swiss"]
[EventCountry "NED"]
[SourceTitle "playchess.com"]
[Source "ChessBase"]
[SourceQuality "1"]
[TimeControl "40/5400+30:1800+30"]

{[%evp 20,41,18,7,75,45,112,83,139,147,32767,32767,32767,32767,32767,32767,269,182,308,32767,390,426,505,532]} 1. e4 {[%emt 0:00:07]} d5 {[%emt 0:00:07]} 2. Nc3 {[%emt 0:00:51]} dxe4 {[%emt 0:01:29]} 3. Nxe4 {[%emt 0:00:48]} Qd5 {[%emt 0:00:39]} 4. Nc3 {[%emt 0:05:21]} Qd6 {[%emt 0:00:30]} 5. Bc4 {[%emt 0:05:54]} Nf6 {[%emt 0:03:24]} 6. d3 {[%emt 0:01:06] B01: Scandinavian Defence} (6. d4 a6 7. h3 b5 8. Bb3 Bb7 9. Nf3 c5 10. dxc5 Qxd1+ 11. Nxd1 e6 12. Be3 Nbd7 13. c6 Bxc6 14. O-O Be7 {½-½ (60) Savic,M (2628)-Milanovic,D (2547) Belgrade 2016}) 6... a6 {[%emt 0:01:39]} 7. Nf3 {[%emt 0:16:13]} b5 {[%emt 0:02:03]} 8. Bb3 {[%emt 0:01:17]} Bb7 {[%emt 0:02:34]} 9. O-O {[%emt 0:01:52]} e6 {[%emt 0:03:16]} 10. Qe2 {[%emt 0:10:45]} Be7 {[%emt 0:05:04]} 11. a4 {[%emt 0:02:10]} bxa4 $146 {[%emt 0:20:32]} ({Predecessor:} 11... b4 12. Ne4 Nxe4 13. dxe4 Nd7 14. Re1 {½-½ (51) Ivanovic,B (2501)-Benkovic,P (2469) Subotica 2003}) 12. Rxa4 {[%emt 0:05:24]} Nc6 {[%emt 0:03:58]} (12... O-O $14) 13. Bf4 {[%emt 0:02:40]} Qd7 {[%emt 0:02:48] [#]} ({Better is} 13... Qd8) 14. Rc4 $1 {[%emt 0:09:21]} Bd6 {[%emt 0:09:05]} 15. Ba4 {[%emt 0:04:01]} O-O {[%emt 0:03:38]} 16. Ne5 {[%emt 0:03:06]} Bxe5 {[%emt 0:03:41]} 17. Bxe5 {[%emt 0:01:00]} Nd5 {[%emt 0:02:46] [#]} 18. Ne4 $1 {[%emt 0:03:32]} f6 {[%emt 0:05:36]} (18... Rab8 {is a better defense.} 19. Nc5 Qc8 20. Bxg7 Kxg7) 19. Nc5 {[%emt 0:02:19]} Qc8 $18 {[%emt 0:05:19]} 20. Bg3 {[%emt 0:04:04]} e5 {[%emt 0:05:27]} 21. Nxb7 {[%emt 0:04:21]} 1-0

[Event "Groningen Festival 2019-B"]
[Site "Groningen"]
[Date "2019.12.21"]
[Round "1.2"]
[White "Arnold, Frieda"]
[Black "Wissmann, Dolf"]
[Result "0-1"]
[ECO "B23"]
[WhiteElo "1840"]
[BlackElo "2092"]
[Annotator "NA"]
[PlyCount "52"]
[EventDate "2019.12.15"]
[EventType "swiss"]
[EventCountry "NED"]
[SourceTitle "playchess.com"]
[Source "ChessBase"]
[SourceQuality "1"]
[TimeControl "40/5400+30:1800+30"]

1. e4 {[%emt 0:00:00]} g6 {[%emt 0:00:00]} 2. Nc3 {[%emt 0:00:06]} Bg7 {[%emt 0:00:11]} 3. f4 {[%emt 0:01:11]} d6 {[%emt 0:02:17]} 4. Bc4 {[%emt 0:02:12]} c5 {[%emt 0:01:30]} 5. Nf3 {[%emt 0:00:13]} Nc6 {[%emt 0:00:15]} 6. O-O {[%emt 0:01:07]} e6 {[%emt 0:00:50]} 7. d4 {[%emt 0:01:48] B23: Closed Sicilian: Lines without g3} Nxd4 {[%emt 0:04:16]} (7... cxd4 8. Nb5 Na5 9. Bd3 e5 10. b4 Nc6 11. Bc4 Nf6 12. c3 a6 13. Ng5 axb5 14. Bxf7+ Ke7 15. cxd4 Nxd4 {½-½ (33) Nepomniachtchi,I (2775)-Giri,A (2779) Paris 2019}) 8. Be3 {[%emt 0:02:47]} Nxf3+ {[%emt 0:03:39]} 9. Qxf3 {[%emt 0:00:48]} a6 {[%emt 0:01:55]} 10. f5 {[%emt 0:02:20]} Nf6 $146 {[%emt 0:07:28]} ({Predecessor:} 10... Qc7 11. fxe6 Bxe6 12. Bxe6 fxe6 13. Bg5 Bd4+ 14. Kh1 Qg7 {1-0 (33) Vidic,T (2176)-Hrescak,I (2076) Ljubljana 2018}) 11. Rad1 {[%emt 0:12:50]} O-O {[%emt 0:10:34]} 12. e5 {[%emt 0:01:25]} Nd7 {[%emt 0:00:50]} 13. fxe6 {[%emt 0:05:38]} fxe6 {[%emt 0:02:41]} 14. Bxe6+ {[%emt 0:03:03]} Kh8 {[%emt 0:02:47]} 15. Qh3 {[%emt 0:03:06]} Rxf1+ {[%emt 0:01:30]} 16. Rxf1 {[%emt 0:02:13]} Nxe5 {[%emt 0:00:42]} 17. Ne4 {[%emt 0:07:50]} Bxe6 {[%emt 0:08:01]} 18. Qxe6 {[%emt 0:00:34]} Qg8 {[%emt 0:08:25]} 19. Qh3 {[%emt 0:11:12]} Rf8 {[%emt 0:10:27]} 20. Rd1 {[%emt 0:21:50]} Nc4 {[%emt 0:02:25]} 21. Bg5 $2 {[%emt 0:05:10]} (21. Bh6 $1 $11) 21... Qf7 {[%emt 0:03:45]} ({Don't go for} 21... Bxb2 $2 22. c3 $18) ({Much less strong is} 21... Nxb2 22. Rf1 $19) 22. g4 $19 {[%emt 0:05:54]} (22. Qf3 Qe6 23. Qe2) 22... d5 {[%emt 0:01:46]} 23. Nc3 {[%emt 0:03:14]} Nxb2 {[%emt 0:01:29]} 24. Rb1 {[%emt 0:02:59]} Qf2+ {[%emt 0:07:00]} 25. Kh1 {[%emt 0:00:07]} Qxc2 {[%emt 0:00:58]} 26. Rc1 {[%emt 0:00:05]} Qd3 {[%emt 0:00:15]} 0-1

[Event "Groningen Festival 2019-B"]
[Site "Groningen"]
[Date "2019.12.21"]
[Round "1.3"]
[White "Slagter, Ruben"]
[Black "Torenbosch, Jorn"]
[Result "0-1"]
[ECO "C00"]
[WhiteElo "2077"]
[BlackElo "1821"]
[Annotator "NA"]
[PlyCount "104"]
[EventDate "2019.12.15"]
[EventType "swiss"]
[EventCountry "NED"]
[SourceTitle "playchess.com"]
[Source "ChessBase"]
[SourceQuality "1"]
[TimeControl "40/5400+30:1800+30"]

1. e4 {[%emt 0:00:00]} e6 {[%emt 0:00:00]} 2. d3 d5 {[%emt 0:00:34]} 3. Qe2 {[%emt 0:00:00]} Nf6 {[%emt 0:01:39]} 4. Nf3 {[%emt 0:00:53]} Be7 {[%emt 0:03:32]} 5. e5 {[%emt 0:03:46]} Nfd7 {[%emt 0:01:10]} 6. g3 {[%emt 0:00:11]} c5 {[%emt 0:01:40]} 7. Bg2 {[%emt 0:00:45]} Nc6 {[%emt 0:01:51]} 8. O-O {[%emt 0:04:59]} O-O {[%emt 0:07:02]} 9. h4 {[%emt 0:06:28]} Re8 {[%emt 0:07:51] C00: French: Unusual White 2nd moves} (9... b5 10. Bf4 b4 11. Nbd2 Ba6 12. a3 c4 13. d4 bxa3 14. bxa3 Qa5 15. Qe3 Rab8 16. Rfc1 Rb2 17. Ng5 {½-½ (67) Morozevich,A (2676)-Dvalishvili,P (2433) Moscow 2017}) 10. c4 {[%emt 0:07:33]} f6 {[%emt 0:05:59]} 11. exf6 $1 {[%emt 0:09:23]} Nxf6 {[%emt 0:00:23]} 12. Nc3 {[%emt 0:07:06]} a6 $146 {[%emt 0:06:19]} ({Predecessor:} 12... Bf8 13. Bf4 a6 14. Rfe1 Nd4 15. Qd2 Nxf3+ 16. Bxf3 d4 17. Ne4 Nxe4 18. Bxe4 {1-0 (37) List,J (2219)-Enxing,S Germany 1998}) 13. Bf4 {[%emt 0:05:40]} Bd6 {[%emt 0:03:44]} 14. Bg5 {[%emt 0:11:34]} Bd7 {[%emt 0:04:58]} 15. Qd2 {[%emt 0:01:42]} (15. Rae1 $16) 15... d4 {[%emt 0:06:32]} 16. Bxf6 {[%emt 0:04:00]} gxf6 {[%emt 0:08:03]} 17. Ne4 {[%emt 0:00:14]} Be7 {[%emt 0:01:39]} 18. Qh6 {[%emt 0:01:34]} Rf8 {[%emt 0:01:20]} 19. Rfe1 {[%emt 0:13:52]} Qe8 {[%emt 0:04:02]} 20. h5 {[%emt 0:01:59]} Qf7 {[%emt 0:01:33]} 21. Bh3 {[%emt 0:01:17]} Kh8 {[%emt 0:01:47]} 22. Nh4 {[%emt 0:01:58]} Kg8 {[%emt 0:01:44]} 23. f4 {[%emt 0:09:25]} Nb4 $14 {[%emt 0:03:36]} 24. Rad1 {[%emt 0:02:18]} b5 {[%emt 0:09:52]} 25. f5 {[%emt 0:01:17]} e5 {[%emt 0:02:06]} 26. Ng6 {[%emt 0:00:12]} Nc2 {[%emt 0:03:45]} 27. Nxf8 {[%emt 0:01:06]} Bxf8 {[%emt 0:01:10]} 28. Nxf6+ {[%emt 0:02:25]} Kh8 {[%emt 0:00:12]} 29. Qxh7+ {[%emt 0:01:33]} Qxh7 {[%emt 0:00:09]} 30. Nxh7 {[%emt 0:00:08]} Kxh7 {[%emt 0:01:22]} 31. Rxe5 {[%emt 0:00:17]} bxc4 {[%emt 0:01:27]} 32. dxc4 {[%emt 0:00:29]} Re8 {[%emt 0:01:16]} 33. Rxe8 {[%emt 0:00:44]} Bxe8 {[%emt 0:00:05]} 34. g4 {[%emt 0:00:41]} Kh6 {[%emt 0:02:02]} 35. Kf2 {[%emt 0:01:21]} Kg5 {[%emt 0:00:29]} 36. Rd2 {[%emt 0:00:29]} Ne3 {[%emt 0:00:30]} 37. b3 {[%emt 0:00:20]} Kh4 {[%emt 0:01:27]} 38. Bg2 {[%emt 0:00:14]} Nxg4+ {[%emt 0:01:11]} 39. Ke1 {[%emt 0:00:53]} Bxh5 {[%emt 0:01:09]} 40. Bf3 {[%emt 0:00:20]} Bd6 {[%emt 0:01:09]} 41. Ke2 {[%emt 0:03:12]} Bf4 {[%emt 0:01:24]} 42. Rb2 {[%emt 0:02:17]} Kg3 {[%emt 0:05:24]} 43. b4 {[%emt 0:03:41]} Bf7 {[%emt 0:03:16]} 44. Bd5 {[%emt 0:00:22]} Bxd5 {[%emt 0:00:31]} 45. cxd5 {[%emt 0:00:23]} c4 {[%emt 0:00:07]} 46. b5 {[%emt 0:07:09]} d3+ {[%emt 0:03:44]} 47. Ke1 {[%emt 0:00:32]} c3 {[%emt 0:01:38]} 48. Rb3 {[%emt 0:00:14]} Bd2+ {[%emt 0:01:07]} 49. Kf1 {[%emt 0:00:16]} Nh2+ {[%emt 0:01:04]} 50. Kg1 {[%emt 0:00:08]} Be3+ {[%emt 0:00:08]} 51. Kh1 {[%emt 0:00:05]} d2 {[%emt 0:00:48]} 52. Rxc3 {[%emt 0:00:08]} d1=Q# {[%emt 0:00:10]} 0-1

[Event "Groningen Festival 2019-B"]
[Site "Groningen"]
[Date "2019.12.21"]
[Round "1.5"]
[White "Noordenbos, Daan"]
[Black "Karsdorp, Nico"]
[Result "1-0"]
[ECO "B02"]
[WhiteElo "2023"]
[BlackElo "1812"]
[Annotator "NA"]
[PlyCount "41"]
[EventDate "2019.12.15"]
[EventType "swiss"]
[EventCountry "NED"]
[SourceTitle "playchess.com"]
[Source "ChessBase"]
[SourceQuality "1"]
[TimeControl "40/5400+30:1800+30"]

1. e4 Nf6 2. Nc3 d5 3. e5 Ne4 4. Nge2 Nxc3 5. bxc3 Bg4 6. h3 Bh5 7. g4 Bg6 8. Nf4 e6 9. h4 h5 10. Nxg6 fxg6 11. Bd3 hxg4 12. Qxg4 Kd7 13. Bxg6 c5 14. Rb1 Qc7 15. Bf7 Qxe5+ 16. Kd1 Qf5 17. Qxf5 exf5 18. Bxd5 Nc6 19. Rxb7+ Kd6 20. Bg2 Re8 21. d4 1-0

[Event "Groningen Festival 2019-B"]
[Site "Groningen"]
[Date "2019.12.22"]
[Round "2.1"]
[White "Bloem, Mark"]
[Black "Akotchik, Victor"]
[Result "0-1"]
[ECO "C41"]
[WhiteElo "1928"]
[BlackElo "2095"]
[Annotator "NA RC"]
[PlyCount "130"]
[EventDate "2019.12.15"]
[EventType "swiss"]
[EventCountry "NED"]
[SourceTitle "playchess.com"]
[Source "ChessBase"]
[SourceQuality "1"]
[TimeControl "40/5400+30:1800+30"]

1. e4 {[%emt 0:00:00]} e5 {[%emt 0:00:05]} 2. Nf3 {[%emt 0:00:00]} Qe7 {[%emt 0:00:47]} 3. Nc3 {[%emt 0:05:02]} c6 {[%emt 0:00:59]} 4. d4 {[%emt 0:01:59]} d6 {[%emt 0:01:17]} 5. Be2 {[%emt 0:03:26]} g6 {[%emt 0:01:40]} 6. O-O {[%emt 0:04:30] C41: Philidor Defence} Nh6 {[%emt 0:00:55]} 7. a4 {[%emt 0:06:49]} a5 {[%emt 0:01:12]} 8. b3 $146 {[%emt 0:02:42]} ({Predecessor:} 8. d5 c5 9. Nd2 f6 10. Nc4 Qd8 11. Bxh6 Bxh6 12. Nb5 Ra6 13. Bg4 Bxg4 14. Qxg4 {1-0 (21) Azarov,S (2613)-Khouseinov,R (2348) Dresden 2008}) 8... f6 {[%emt 0:00:27]} 9. Qd2 {[%emt 0:06:04]} Nf7 {[%emt 0:01:31]} 10. dxe5 {[%emt 0:05:18]} dxe5 {[%emt 0:00:41]} 11. Bb2 {[%emt 0:08:57]} Nd7 {[%emt 0:08:37]} 12. Rfd1 {[%emt 0:02:08]} Nc5 {[%emt 0:09:03]} 13. Qe1 {[%emt 0:09:15]} Ne6 {[%emt 0:01:06]} 14. Bc4 {[%emt 0:04:25]} Nd6 {[%emt 0:15:54]} 15. Bf1 {[%emt 0:06:38]} Qc7 {[%emt 0:02:38]} 16. Rd2 {[%emt 0:15:56]} Bh6 {[%emt 0:05:21]} 17. Rdd1 {[%emt 0:01:08]} O-O {[%emt 0:00:57]} 18. Bc1 {[%emt 0:01:13]} Bg7 {[%emt 0:03:24]} 19. Bb2 {[%emt 0:00:43]} Re8 {[%emt 0:00:37]} 20. Qe3 {[%emt 0:01:08]} Nf7 {[%emt 0:01:01]} 21. Bc4 {[%emt 0:01:20]} Bh6 {[%emt 0:05:39]} 22. Qe1 {[%emt 0:00:41]} Bf8 {[%emt 0:00:49]} 23. Ba3 {[%emt 0:03:49]} Bxa3 {[%emt 0:03:59]} 24. Rxa3 {[%emt 0:02:00]} Qe7 {[%emt 0:01:28]} 25. Raa1 {[%emt 0:00:00]} Qc5 {[%emt 0:03:33]} 26. Qe3 {[%emt 0:02:22]} Kf8 {[%emt 0:06:20]} 27. Qxc5+ {[%emt 0:01:53]} Nxc5 {[%emt 0:00:04]} 28. h3 {[%emt 0:00:56]} Ke7 {[%emt 0:01:09]} 29. Bxf7 {[%emt 0:01:05]} Kxf7 {[%emt 0:00:03]} 30. Rd2 {[%emt 0:01:02]} Be6 {[%emt 0:00:47]} 31. Rad1 {[%emt 0:00:10]} Ke7 {[%emt 0:00:06]} 32. Kf1 {[%emt 0:00:33]} g5 {[%emt 0:04:04]} 33. Ke2 {[%emt 0:00:35]} Bc8 {[%emt 0:03:34]} 34. Ke3 {[%emt 0:01:33]} Ne6 {[%emt 0:00:39]} 35. Ne2 {[%emt 0:00:15]} Nf4 {[%emt 0:00:25]} 36. Nxf4 {[%emt 0:00:55]} gxf4+ {[%emt 0:00:05]} 37. Ke2 {[%emt 0:00:26]} Be6 {[%emt 0:10:21]} 38. Ne1 {[%emt 0:00:54]} Rg8 {[%emt 0:03:41]} 39. Rd3 {[%emt 0:00:44]} f5 {[%emt 0:01:37]} 40. exf5 {[%emt 0:00:49]} Bxf5 {[%emt 0:00:35]} 41. Rc3 {[%emt 0:09:14]} Rad8 {[%emt 0:13:19]} 42. Rxd8 {[%emt 0:18:42]} Rxd8 {[%emt 0:00:14]} 43. Nd3 {[%emt 0:00:33]} Kd6 {[%emt 0:11:17]} 44. Nc5 {[%emt 0:02:23]} Kc7 {[%emt 0:00:11]} 45. Nd3 {[%emt 0:01:23]} Rd5 {[%emt 0:01:01]} 46. Nb2 {[%emt 0:00:22]} Be6 {[%emt 0:05:33]} 47. g3 {[%emt 0:00:46]} Rd4 {[%emt 0:03:30]} 48. h4 {[%emt 0:00:30]} Re4+ {[%emt 0:00:51]} 49. Kf1 {[%emt 0:00:32]} Bh3+ {[%emt 0:00:46]} 50. Kg1 {[%emt 0:00:03]} Re1+ {[%emt 0:00:14]} 51. Kh2 {[%emt 0:00:01]} Bf5 {[%emt 0:00:31]} 52. gxf4 {[%emt 0:00:22]} exf4 {[%emt 0:00:08]} 53. Nd3 {[%emt 0:00:47]} Re2 {[%emt 0:00:42]} 54. Nxf4 {[%emt 0:00:59]} Rxf2+ {[%emt 0:00:17]} 55. Kg3 {[%emt 0:00:26]} Rxc2 {[%emt 0:00:16]} 56. Re3 {[%emt 0:00:21]} Kd6 {[%emt 0:00:28]} 57. Ne2 {[%emt 0:00:28]} Rd2 {[%emt 0:00:52]} 58. Nf4 {[%emt 0:00:22]} Rd4 {[%emt 0:00:47]} 59. Re8 {[%emt 0:00:46]} Rb4 {[%emt 0:00:16]} 60. Re3 {[%emt 0:00:10]} Re4 {[%emt 0:00:38]} 61. Rf3 {[%emt 0:00:17]} Rd4 {[%emt 0:00:43]} 62. h5 {[%emt 0:00:12]} Kc5 {[%emt 0:00:13]} 63. Re3 $19 {[%emt 0:01:07]} Kb4 {[%emt 0:00:41]} 64. Kf2 {[%emt 0:01:12]} Rxf4+ {[%emt 0:00:37]} 65. Kg3 {[%emt 0:00:37]} Rd4 0-1

[Event "Groningen Festival 2019-B"]
[Site "Groningen"]
[Date "2019.12.22"]
[Round "2.2"]
[White "Wissmann, Dolf"]
[Black "Kubat, Pavel"]
[Result "0-1"]
[ECO "B25"]
[WhiteElo "2092"]
[BlackElo "1914"]
[Annotator "NA"]
[PlyCount "50"]
[EventDate "2019.12.15"]
[EventType "swiss"]
[EventCountry "NED"]
[SourceTitle "playchess.com"]
[Source "ChessBase"]
[SourceQuality "1"]
[TimeControl "40/5400+30:1800+30"]

1. e4 {[%emt 0:00:00]} c5 {[%emt 0:02:37]} 2. Nc3 {[%emt 0:00:00]} Nc6 {[%emt 0:02:06]} 3. g3 {[%emt 0:00:12]} d6 {[%emt 0:00:37]} 4. Bg2 {[%emt 0:00:29]} g6 {[%emt 0:02:37]} 5. d3 {[%emt 0:00:27]} Bg7 {[%emt 0:00:41]} 6. Nh3 {[%emt 0:00:53]} Nf6 {[%emt 0:10:19]} 7. O-O {[%emt 0:01:30]} h5 {[%emt 0:06:31]} 8. Nf4 {[%emt 0:03:25]} h4 {[%emt 0:01:27]} 9. Re1 {[%emt 0:04:13]} hxg3 {[%emt 0:07:33]} 10. hxg3 {[%emt 0:00:29]} Ng4 {[%emt 0:09:42]} 11. Nce2 {[%emt 0:05:35]} Nge5 {[%emt 0:08:02]} 12. f3 {[%emt 0:08:03]} g5 {[%emt 0:01:49]} 13. Nd5 {[%emt 0:01:38]} g4 {[%emt 0:00:46]} 14. Kf2 {[%emt 0:16:05]} gxf3 {[%emt 0:03:41]} 15. Bxf3 {[%emt 0:01:14]} Nxf3 {[%emt 0:06:13]} 16. Kxf3 {[%emt 0:00:13]} Bg4+ {[%emt 0:05:50]} 17. Kg2 {[%emt 0:03:52]} Nd4 {[%emt 0:02:32]} 18. c3 {[%emt 0:03:21]} Bf3+ {[%emt 0:01:42]} 19. Kf2 {[%emt 0:02:18]} Rh2+ {[%emt 0:00:10]} 20. Kg1 {[%emt 0:00:29]} Rg2+ {[%emt 0:01:02]} 21. Kf1 {[%emt 0:00:11]} Nxe2 {[%emt 0:00:12]} 22. Qa4+ {[%emt 0:01:33]} Kf8 {[%emt 0:02:37]} 23. Bf4 {[%emt 0:04:48]} e5 {[%emt 0:02:54]} 24. Rxe2 {[%emt 0:02:10]} Rxe2 {[%emt 0:00:18]} 25. Be3 {[%emt 0:00:11]} Qc8 {[%emt 0:00:44]} 0-1

[Event "Groningen Festival 2019-B"]
[Site "Groningen"]
[Date "2019.12.22"]
[Round "2.3"]
[White "Bosker, Peter"]
[Black "Klein, Jorik"]
[Result "1/2-1/2"]
[ECO "E97"]
[WhiteElo "2075"]
[BlackElo "1859"]
[Annotator "NA RC"]
[PlyCount "129"]
[EventDate "2019.12.15"]
[EventType "swiss"]
[EventCountry "NED"]
[SourceTitle "playchess.com"]
[Source "ChessBase"]
[SourceQuality "1"]
[TimeControl "40/5400+30:1800+30"]

1. d4 {[%emt 0:00:00]} Nf6 {[%emt 0:06:59]} 2. Nf3 {[%emt 0:00:00]} g6 {[%emt 0:00:07]} 3. c4 {[%emt 0:00:00]} Bg7 {[%emt 0:00:05]} 4. Nc3 {[%emt 0:00:00]} O-O {[%emt 0:00:07]} 5. e4 {[%emt 0:00:05]} d6 {[%emt 0:00:04]} 6. Be2 {[%emt 0:00:06]} e5 {[%emt 0:00:05]} 7. O-O {[%emt 0:00:10]} Nc6 {[%emt 0:00:06]} 8. d5 {[%emt 0:00:07]} Ne7 {[%emt 0:00:04]} 9. b4 {[%emt 0:00:08]} a5 {[%emt 0:00:58]} 10. Ba3 {[%emt 0:00:18]} axb4 {[%emt 0:02:13]} 11. Bxb4 {[%emt 0:00:08]} Re8 {[%emt 0:00:07] E97: King's Indian: Classical Main Line (6...e5 7 0-0 Nc6): 8 Be3 and 8 d5 Ne7, not 9 Ne1} 12. c5 {[%emt 0:00:59]} dxc5 {[%emt 0:03:24]} 13. Bxc5 {[%emt 0:00:33]} c6 {[%emt 0:00:04]} 14. dxc6 {[%emt 0:33:59]} Nxc6 {[%emt 0:00:36]} 15. Qxd8 {[%emt 0:00:07]} Rxd8 {[%emt 0:00:26] [#]} 16. Bc4 $146 {[%emt 0:06:13]} ({Predecessor:} 16. Bb6) 16... h6 {[%emt 0:19:21]} 17. h3 {[%emt 0:03:15]} Nd7 {[%emt 0:08:36]} 18. Be3 {[%emt 0:00:30]} Nf8 {[%emt 0:02:56]} 19. Rab1 {[%emt 0:02:57]} Ne6 {[%emt 0:14:43]} 20. Nd5 {[%emt 0:07:48]} Ra4 {[%emt 0:08:40]} 21. Nb6 {[%emt 0:01:17]} Rb4 {[%emt 0:00:47]} 22. a3 {[%emt 0:05:24]} Rxb1 {[%emt 0:00:09]} 23. Rxb1 {[%emt 0:00:01]} Na5 {[%emt 0:07:33]} 24. Bd5 {[%emt 0:01:19]} Nc7 {[%emt 0:00:40]} 25. Ba2 {[%emt 0:08:38]} Be6 {[%emt 0:01:57]} 26. Nd5 {[%emt 0:06:43]} Ne8 {[%emt 0:08:05]} 27. Rb5 {[%emt 0:09:07]} Nc6 {[%emt 0:01:06]} 28. Rxb7 {[%emt 0:00:29]} Nd6 {[%emt 0:00:24]} 29. Rc7 {[%emt 0:02:30]} Nxe4 {[%emt 0:00:42]} 30. Ne7+ {[%emt 0:01:54]} Nxe7 {[%emt 0:00:34]} 31. Bxe6 {[%emt 0:00:20]} Re8 {[%emt 0:07:13]} 32. Bc4 {[%emt 0:01:32]} Nd6 {[%emt 0:00:56]} 33. Bf1 {[%emt 0:02:03]} Nd5 {[%emt 0:01:00]} 34. Ra7 {[%emt 0:01:22]} Nxe3 {[%emt 0:02:24]} 35. fxe3 {[%emt 0:00:02]} e4 {[%emt 0:00:32]} 36. Nd2 {[%emt 0:01:51]} Nf5 {[%emt 0:00:37]} 37. Bc4 {[%emt 0:01:29]} Nd6 {[%emt 0:00:38]} 38. Bd5 {[%emt 0:01:30]} Re5 {[%emt 0:01:46]} 39. Ba2 {[%emt 0:01:40]} Bf8 {[%emt 0:00:22]} 40. a4 {[%emt 0:02:10]} Be7 {[%emt 0:01:49]} 41. Nc4 {[%emt 0:04:20]} Nxc4 $1 {[%emt 0:03:39]} 42. Bxc4 {[%emt 0:00:02]} Rc5 {[%emt 0:04:58]} 43. Bd5 {[%emt 0:11:17]} Rxd5 {[%emt 0:06:53]} 44. Rxe7 {[%emt 0:00:08]} f5 {[%emt 0:00:03]} 45. Ra7 {[%emt 0:00:31]} Rd2 {[%emt 0:00:11]} 46. a5 {[%emt 0:00:32]} Ra2 $2 {[%emt 0:01:54]} ({Black should try} 46... f4 $1 $14) 47. a6 {[%emt 0:00:11]} g5 {[%emt 0:01:45]} 48. g3 {[%emt 0:00:48]} Kf8 {[%emt 0:00:07]} 49. Kf1 {[%emt 0:00:45]} Ke8 {[%emt 0:00:25]} 50. Ke1 {[%emt 0:05:53]} Kd8 {[%emt 0:00:46]} 51. h4 $11 {[%emt 0:08:11]} gxh4 {[%emt 0:07:52]} 52. gxh4 {[%emt 0:00:01]} Kc8 {[%emt 0:00:05]} 53. Rf7 {[%emt 0:00:27]} Rxa6 {[%emt 0:00:19]} 54. Rxf5 {[%emt 0:00:09]} Rg6 {[%emt 0:02:28]} 55. Kd2 {[%emt 0:01:44]} Rd6+ {[%emt 0:02:50]} 56. Ke2 {[%emt 0:00:07]} Kd7 {[%emt 0:00:47]} 57. Rf4 {[%emt 0:00:49]} Re6 {[%emt 0:00:22]} 58. Kf2 {[%emt 0:00:27]} Kd6 {[%emt 0:00:57]} 59. Kg3 {[%emt 0:01:06]} Ke5 {[%emt 0:01:16]} 60. h5 {[%emt 0:01:07]} Re7 {[%emt 0:01:31]} 61. Rf8 {[%emt 0:00:57]} Rg7+ {[%emt 0:00:36]} 62. Kh4 {[%emt 0:00:28]} Rg1 {[%emt 0:00:15]} 63. Re8+ {[%emt 0:00:40]} Kf5 {[%emt 0:00:20]} 64. Rf8+ {[%emt 0:00:13]} Ke5 {[%emt 0:00:04]} 65. Re8+ 1/2-1/2

[Event "Groningen Festival 2019-B"]
[Site "Groningen"]
[Date "2019.12.22"]
[Round "2.4"]
[White "Christensen, John Christopher Hoj"]
[Black "Noordenbos, Daan"]
[Result "0-1"]
[ECO "C12"]
[WhiteElo "1848"]
[BlackElo "2023"]
[Annotator "NA"]
[PlyCount "60"]
[EventDate "2019.12.15"]
[EventType "swiss"]
[EventCountry "NED"]
[SourceTitle "playchess.com"]
[Source "ChessBase"]
[SourceQuality "1"]
[TimeControl "40/5400+30:1800+30"]

1. e4 {[%emt 0:00:00]} e6 {[%emt 0:00:00]} 2. d4 {[%emt 0:00:00]} d5 {[%emt 0:00:00]} 3. Nc3 {[%emt 0:00:03]} Nf6 {[%emt 0:00:00]} 4. Bg5 {[%emt 0:00:15]} Bb4 {[%emt 0:00:00]} 5. e5 {[%emt 0:01:45]} h6 {[%emt 0:01:31]} 6. Bxf6 {[%emt 0:03:50]} gxf6 {[%emt 0:00:50]} 7. Nf3 {[%emt 0:02:01]} c5 {[%emt 0:06:27]} 8. a3 {[%emt 0:02:18]} Bxc3+ {[%emt 0:01:56]} 9. bxc3 {[%emt 0:00:05]} Nd7 {[%emt 0:08:08]} 10. Bb5 {[%emt 0:01:31]} Qa5 {[%emt 0:00:51]} 11. Bxd7+ {[%emt 0:00:51]} Bxd7 {[%emt 0:00:18]} 12. Qd2 {[%emt 0:01:03]} f5 {[%emt 0:03:51]} 13. O-O {[%emt 0:00:48]} Rc8 {[%emt 0:00:57]} 14. Rfc1 {[%emt 0:02:02]} Ba4 {[%emt 0:00:28]} 15. Ra2 {[%emt 0:00:28]} Kd7 {[%emt 0:02:25]} 16. Qe3 {[%emt 0:10:47]} cxd4 {[%emt 0:17:53]} 17. cxd4 {[%emt 0:00:34]} Qc3 {[%emt 0:02:08]} 18. Ne1 {[%emt 0:09:36]} Rc4 {[%emt 0:00:31]} 19. Qxc3 {[%emt 0:02:14]} Rxc3 {[%emt 0:00:12]} 20. Nd3 {[%emt 0:00:08]} b6 {[%emt 0:01:20]} 21. Kf1 {[%emt 0:09:02]} Rhc8 {[%emt 0:00:31]} 22. Ne1 {[%emt 0:02:26]} Bb3 {[%emt 0:11:01]} 23. Rb2 {[%emt 0:01:06]} Bc4+ {[%emt 0:00:12]} 24. Kg1 {[%emt 0:00:31]} Rxa3 {[%emt 0:00:10]} 25. c3 {[%emt 0:05:35]} Ba6 {[%emt 0:00:16]} 26. Rbc2 {[%emt 0:01:46]} Bb5 {[%emt 0:00:06]} 27. g3 {[%emt 0:01:58]} Ba4 {[%emt 0:00:14]} 28. Rd2 {[%emt 0:00:37]} Rcxc3 {[%emt 0:00:44]} 29. Rxc3 {[%emt 0:00:17]} Rxc3 {[%emt 0:00:02]} 30. Kg2 {[%emt 0:00:13]} Bb3 {[%emt 0:00:23]} 0-1